[Event "FRA-ch Youth U12W 2019"]
[Site "Hyeres"]
[Date "2019.04.15"]
[Round "3.3"]
[White "Berezovsky, Fiorina"]
[Black "Riss, Selenia"]
[Result "1-0"]
[ECO "C54"]
[WhiteElo "1604"]
[BlackElo "1347"]
[Annotator "NA"]
[PlyCount "137"]
[EventDate "2019.04.14"]
[EventType "swiss"]
[EventCountry "FRA"]
[SourceTitle "playchess.com"]
[Source "ChessBase"]
[SourceQuality "1"]
[TimeControl "5400+30"]

1. e4 {[%emt 0:00:00]} e5 {[%emt 0:00:00]} 2. Nf3 {[%emt 0:00:00]} Nc6 {[%emt 0:00:00]} 3. Bc4 {[%emt 0:00:00]} Bc5 {[%emt 0:00:12]} 4. O-O {[%emt 0:00:23]} Nf6 {[%emt 0:01:13]} 5. d3 {[%emt 0:00:54]} d6 {[%emt 0:04:23]} 6. c3 {[%emt 0:02:09]} a6 {[%emt 0:03:33]} 7. d4 {[%emt 0:01:27]} exd4 {[%emt 0:04:53]} 8. cxd4 {[%emt 0:00:20]} Ba7 {[%emt 0:08:31]} 9. Bg5 {[%emt 0:05:56]} h6 {[%emt 0:12:44]} 10. Bxf6 {[%emt 0:02:46]} Qxf6 {[%emt 0:03:44]} 11. e5 {[%emt 0:01:39]} dxe5 {[%emt 0:04:48]} 12. dxe5 {[%emt 0:00:42]} Qg6 {[%emt 0:02:00]} 13. Bd3 {[%emt 0:06:16]} Qe6 {[%emt 0:08:12]} 14. Nc3 {[%emt 0:02:59]} O-O {[%emt 0:04:37]} 15. Qe2 {[%emt 0:00:57]} Re8 {[%emt 0:03:45]} 16. Qe4 {[%emt 0:03:51]} g6 {[%emt 0:13:18]} 17. Bc4 {[%emt 0:01:58]} Qf5 {[%emt 0:02:52]} 18. Qxf5 {[%emt 0:00:31]} Bxf5 {[%emt 0:00:10]} 19. Nd5 {[%emt 0:00:10]} Rec8 {[%emt 0:08:46]} 20. Rac1 {[%emt 0:01:40]} Bb6 {[%emt 0:03:19]} 21. Rfd1 {[%emt 0:01:46]} Rd8 {[%emt 0:01:12]} 22. h3 {[%emt 0:04:03]} Kg7 {[%emt 0:02:21]} 23. b4 {[%emt 0:01:57]} Be6 {[%emt 0:01:03]} 24. a3 {[%emt 0:00:18]} Rab8 {[%emt 0:01:33]} 25. g4 {[%emt 0:04:20]} Rd7 {[%emt 0:02:03]} 26. Nxb6 {[%emt 0:01:46]} Rxd1+ {[%emt 0:00:10]} 27. Rxd1 {[%emt 0:00:08]} cxb6 {[%emt 0:00:08]} 28. Bxe6 {[%emt 0:00:51]} fxe6 {[%emt 0:00:08]} 29. Rd6 {[%emt 0:00:08]} Kf7 {[%emt 0:00:37]} 30. Kf1 {[%emt 0:02:21]} Rd8 {[%emt 0:00:24]} 31. Rxd8 {[%emt 0:01:00]} Nxd8 {[%emt 0:00:07]} 32. Ke2 {[%emt 0:00:11]} Nc6 {[%emt 0:00:07]} 33. Kd3 {[%emt 0:00:34]} Ke7 {[%emt 0:00:17]} 34. Ke4 {[%emt 0:00:56]} g5 {[%emt 0:00:38]} 35. Nd2 {[%emt 0:00:28]} b5 {[%emt 0:01:32]} 36. f4 {[%emt 0:00:32]} gxf4 {[%emt 0:00:33]} 37. Kxf4 {[%emt 0:00:07]} Kf7 {[%emt 0:00:09]} 38. Ne4 {[%emt 0:00:14]} Kg6 {[%emt 0:00:29]} 39. Nd6 {[%emt 0:00:27]} Nd8 {[%emt 0:00:23]} 40. h4 {[%emt 0:00:30]} h5 {[%emt 0:00:31]} 41. Ne4 {[%emt 0:01:10]} hxg4 {[%emt 0:00:28]} 42. Kxg4 {[%emt 0:00:17]} Nc6 {[%emt 0:00:11]} 43. Kf4 {[%emt 0:01:12]} Kh5 {[%emt 0:00:18]} 44. Nc5 {[%emt 0:00:11]} Nd8 {[%emt 0:00:45]} 45. Kg3 {[%emt 0:00:50]} Kh6 {[%emt 0:01:37]} 46. Kg4 {[%emt 0:01:22]} Kg6 {[%emt 0:00:09]} 47. h5+ {[%emt 0:01:22]} Kh6 {[%emt 0:00:06]} 48. Kh4 {[%emt 0:00:18]} Kh7 {[%emt 0:00:08]} 49. Kg5 {[%emt 0:01:00]} Kg7 {[%emt 0:00:19]} 50. h6+ {[%emt 0:00:18]} Kh7 {[%emt 0:00:10]} 51. Kf6 {[%emt 0:00:14]} Kxh6 {[%emt 0:00:46]} 52. Nxe6 {[%emt 0:00:10]} Nxe6 {[%emt 0:00:30]} 53. Kxe6 {[%emt 0:00:07]} Kg7 {[%emt 0:00:04]} 54. Kd7 {[%emt 0:00:04]} Kf7 {[%emt 0:00:09]} 55. e6+ {[%emt 0:00:03]} Kf6 {[%emt 0:00:13]} 56. e7 {[%emt 0:00:04]} a5 {[%emt 0:00:33]} 57. e8=Q {[%emt 0:00:09]} axb4 {[%emt 0:00:11]} 58. Qe6+ {[%emt 0:00:05]} Kg5 {[%emt 0:00:13]} 59. axb4 {[%emt 0:00:10]} b6 {[%emt 0:00:08]} 60. Qf7 {[%emt 0:00:05]} Kg4 {[%emt 0:00:06]} 61. Qf6 {[%emt 0:00:05]} Kg3 {[%emt 0:00:05]} 62. Qf5 {[%emt 0:00:04]} Kg2 {[%emt 0:00:08]} 63. Qf4 {[%emt 0:00:12]} Kh1 {[%emt 0:00:16]} 64. Qd2 {[%emt 0:00:10]} Kg1 {[%emt 0:00:09]} 65. Ke6 {[%emt 0:00:03]} Kf1 {[%emt 0:00:13]} 66. Kf5 {[%emt 0:00:06]} Kg1 {[%emt 0:00:11]} 67. Kg4 {[%emt 0:00:04]} Kh1 {[%emt 0:00:11]} 68. Kh3 {[%emt 0:00:04]} Kg1 {[%emt 0:00:05]} 69. Qg2# {[%emt 0:00:07]} 1-0

[Event "FRA-ch Youth U12W 2019"]
[Site "Hyeres"]
[Date "2019.04.15"]
[Round "3.4"]
[White "Brion, Frederika"]
[Black "Fougerat, Emma"]
[Result "1/2-1/2"]
[ECO "B23"]
[WhiteElo "1351"]
[BlackElo "1585"]
[Annotator "NA RC"]
[PlyCount "84"]
[EventDate "2019.04.14"]
[EventType "swiss"]
[EventCountry "FRA"]
[SourceTitle "playchess.com"]
[Source "ChessBase"]
[SourceQuality "1"]
[TimeControl "5400+30"]

1. e4 {[%emt 0:00:00]} c5 {[%emt 0:00:00]} 2. Nc3 {[%emt 0:00:00]} d6 {[%emt 0:00:00]} 3. f4 {[%emt 0:00:00]} g6 {[%emt 0:00:44]} 4. Nf3 {[%emt 0:00:36]} Bg7 {[%emt 0:00:11]} 5. Bc4 {[%emt 0:00:48]} a6 {[%emt 0:03:00]} 6. a4 {[%emt 0:03:05]} Nf6 {[%emt 0:02:17]} 7. O-O {[%emt 0:01:19]} O-O {[%emt 0:00:18]} 8. d3 {[%emt 0:00:53]} Nc6 {[%emt 0:00:50]} 9. Qe1 {[%emt 0:01:29]} Rb8 {[%emt 0:00:29]} 10. f5 {[%emt 0:01:00]} gxf5 {[%emt 0:03:40]} 11. Qh4 {[%emt 0:01:03]} fxe4 {[%emt 0:00:47]} 12. dxe4 {[%emt 0:00:16]} Be6 {[%emt 0:10:14]} 13. Bxe6 {[%emt 0:04:16]} fxe6 {[%emt 0:00:04]} 14. Bh6 {[%emt 0:00:17]} Nd4 {[%emt 0:16:20]} 15. Ng5 {[%emt 0:01:16]} Bxh6 {[%emt 0:13:37]} 16. Qxh6 {[%emt 0:00:14]} Rf7 {[%emt 0:00:30]} 17. Nxf7 {[%emt 0:01:22]} Kxf7 {[%emt 0:00:33]} 18. Qxh7+ {[%emt 0:00:10]} Ke8 {[%emt 0:00:20]} 19. Qh8+ {[%emt 0:01:01]} Kd7 {[%emt 0:00:02]} 20. Qxd8+ {[%emt 0:00:14]} Rxd8 {[%emt 0:00:01]} 21. Rac1 {[%emt 0:01:16]} b5 {[%emt 0:00:21]} 22. axb5 {[%emt 0:00:13]} axb5 {[%emt 0:00:01]} 23. Rfe1 {[%emt 0:00:55]} Rg8 {[%emt 0:00:24]} 24. Kh1 {[%emt 0:01:38]} Ng4 {[%emt 0:02:42]} 25. h3 {[%emt 0:07:16]} Rh8 {[%emt 0:00:50]} 26. Kg1 {[%emt 0:00:46]} Ne5 {[%emt 0:00:59]} 27. Ne2 {[%emt 0:01:04]} Ndc6 {[%emt 0:02:49]} 28. Ng3 {[%emt 0:01:59]} Rg8 {[%emt 0:00:32]} 29. Kh2 {[%emt 0:00:44]} b4 {[%emt 0:04:06]} 30. b3 {[%emt 0:03:02]} Nd4 {[%emt 0:02:27]} 31. Re3 {[%emt 0:01:05]} Rh8 {[%emt 0:00:22]} 32. Kg1 {[%emt 0:00:59]} Rg8 {[%emt 0:00:23]} 33. Kf2 {[%emt 0:04:00]} c4 {[%emt 0:02:24]} 34. Ke1 {[%emt 0:08:55]} c3 {[%emt 0:01:34]} 35. Kf2 {[%emt 0:02:51]} Rf8+ {[%emt 0:01:40]} 36. Ke1 {[%emt 0:02:17]} Rg8 {[%emt 0:00:08]} 37. Kd1 {[%emt 0:01:55]} Rf8 {[%emt 0:00:58]} 38. Ke1 {[%emt 0:02:30]} Rg8 {[%emt 0:00:51]} 39. Kf2 {[%emt 0:01:48]} Rf8+ {[%emt 0:00:05]} 40. Ke1 {[%emt 0:00:13]} Rg8 {[%emt 0:00:08]} 41. Kf2 {[%emt 0:00:14]} Rf8+ {[%emt 0:01:24]} 42. Ke1 {[%emt 0:00:16]} Rg8 {[%emt 0:31:55]} 1/2-1/2

[Event "FRA-ch Youth U12W 2019"]
[Site "Hyeres"]
[Date "2019.04.16"]
[Round "4.1"]
[White "Ider, Ariuna"]
[Black "Schippke, Manon"]
[Result "1/2-1/2"]
[ECO "D00"]
[WhiteElo "1474"]
[BlackElo "1646"]
[Annotator "NA"]
[PlyCount "61"]
[EventDate "2019.04.14"]
[EventType "swiss"]
[EventCountry "FRA"]
[SourceTitle "playchess.com"]
[Source "ChessBase"]
[SourceQuality "1"]
[TimeControl "5400+30"]

1. d4 {[%emt 0:00:00]} d5 {[%emt 1:30:30]} 2. Bf4 {[%emt 0:00:00]} Nf6 {[%emt 0:00:00]} 3. e3 {[%emt 0:00:42]} e6 {[%emt 0:00:00]} 4. Nd2 {[%emt 0:00:36]} Bd6 {[%emt 0:00:00]} 5. Bg3 {[%emt 0:00:56]} O-O {[%emt 0:00:00]} 6. Bd3 {[%emt 0:02:17]} b6 {[%emt 0:00:00]} 7. Qe2 {[%emt 0:02:09]} c5 {[%emt 0:00:00]} 8. c3 {[%emt 0:01:53]} Bb7 {[%emt 0:00:00]} 9. e4 {[%emt 0:02:15]} dxe4 {[%emt 0:00:00]} 10. Nxe4 {[%emt 0:00:45]} Nxe4 {[%emt 0:00:00]} 11. Bxe4 {[%emt 0:00:12]} Nc6 {[%emt 0:00:00]} 12. Rd1 {[%emt 0:03:40]} Qe7 {[%emt 0:00:00]} 13. Bxd6 {[%emt 0:01:59]} Qxd6 {[%emt 0:00:00]} 14. dxc5 {[%emt 0:00:24]} Qxc5 {[%emt 0:00:00]} 15. Rd7 {[%emt 0:02:26]} Rab8 {[%emt 0:00:00]} 16. Nf3 {[%emt 0:05:48]} Rfd8 {[%emt 0:00:00]} 17. Rxd8+ {[%emt 0:05:21]} Rxd8 {[%emt 0:00:00]} 18. O-O {[%emt 0:01:42]} Qa5 {[%emt 0:00:00]} 19. Rd1 {[%emt 0:01:57]} Qa4 {[%emt 0:00:00]} 20. Rxd8+ {[%emt 0:01:33]} Nxd8 {[%emt 0:00:00]} 21. Qd3 {[%emt 0:01:38]} Nc6 {[%emt 0:00:00]} 22. Bxh7+ {[%emt 0:04:40]} Kh8 {[%emt 0:00:00]} 23. Be4 {[%emt 0:05:47]} Qxa2 {[%emt 0:00:00]} 24. h3 {[%emt 0:03:57]} Qxb2 {[%emt 0:00:00]} 25. Bxc6 {[%emt 0:00:14]} Bxc6 {[%emt 0:00:00]} 26. Qd8+ {[%emt 0:00:09]} Kh7 {[%emt 0:00:00]} 27. Qh4+ {[%emt 0:00:09]} Kg8 {[%emt 0:00:00]} 28. Qd8+ {[%emt 0:00:05]} Kh7 {[%emt 0:00:00]} 29. Qh4+ {[%emt 0:00:05]} Kg8 {[%emt 0:00:00]} 30. Qd8+ {[%emt 0:00:05]} Kh7 {[%emt 0:00:00]} 31. Qh4+ {[%emt 0:00:06]} 1/2-1/2

[Event "FRA-ch Youth U12W 2019"]
[Site "Hyeres"]
[Date "2019.04.16"]
[Round "4.2"]
[White "Deladerriere, Calypso"]
[Black "Berezovsky, Fiorina"]
[Result "1/2-1/2"]
[ECO "B83"]
[WhiteElo "1443"]
[BlackElo "1604"]
[Annotator "NA"]
[PlyCount "96"]
[EventDate "2019.04.14"]
[EventType "swiss"]
[EventCountry "FRA"]
[SourceTitle "playchess.com"]
[Source "ChessBase"]
[SourceQuality "1"]
[TimeControl "5400+30"]

1. e4 {[%emt 0:00:00]} c5 {[%emt 0:00:00]} 2. Nc3 {[%emt 0:00:48]} e6 {[%emt 0:00:18]} 3. f4 {[%emt 0:00:22]} Nc6 {[%emt 0:04:17]} 4. Nf3 {[%emt 0:03:02]} a6 {[%emt 0:02:38]} 5. d4 {[%emt 0:01:10]} cxd4 {[%emt 0:01:56]} 6. Nxd4 {[%emt 0:01:30]} d6 {[%emt 0:03:24]} 7. Be3 {[%emt 0:03:01]} Qc7 {[%emt 0:01:18]} 8. Be2 {[%emt 0:05:22]} Nf6 {[%emt 0:00:52]} 9. O-O {[%emt 0:02:21]} Be7 {[%emt 0:05:33]} 10. Qd2 {[%emt 0:04:38]} b5 {[%emt 0:01:33]} 11. a3 {[%emt 0:02:04]} Bb7 {[%emt 0:00:34]} 12. Bf3 {[%emt 0:03:28]} Na5 {[%emt 0:06:43]} 13. b3 {[%emt 0:03:12]} O-O {[%emt 0:07:33]} 14. Qd3 {[%emt 0:05:05]} Rfd8 {[%emt 0:02:16]} 15. Be2 {[%emt 0:05:38]} Rac8 {[%emt 0:01:09]} 16. Bd2 {[%emt 0:01:05]} d5 {[%emt 0:07:13]} 17. e5 {[%emt 0:00:51]} Ne4 {[%emt 0:01:20]} 18. Nd1 {[%emt 0:02:28]} Nc6 {[%emt 0:04:45]} 19. c3 {[%emt 0:06:45]} Qb6 {[%emt 0:07:11]} 20. Kh1 {[%emt 0:01:19]} Nxd4 {[%emt 0:04:08]} 21. cxd4 {[%emt 0:00:27]} b4 {[%emt 0:01:37]} 22. a4 {[%emt 0:06:15]} a5 {[%emt 0:01:25]} 23. Nf2 {[%emt 0:02:11]} Nxd2 {[%emt 0:01:46]} 24. Qxd2 {[%emt 0:00:18]} Rc3 {[%emt 0:00:07]} 25. Rab1 {[%emt 0:00:36]} Rdc8 {[%emt 0:05:06]} 26. Rb2 {[%emt 0:02:53]} Ba6 {[%emt 0:03:59]} 27. Bxa6 {[%emt 0:01:15]} Qxa6 {[%emt 0:00:39]} 28. Rd1 {[%emt 0:00:55]} Qc6 {[%emt 0:01:19]} 29. Nd3 {[%emt 0:04:02]} Qb6 {[%emt 0:02:16]} 30. Nf2 {[%emt 0:00:43]} R8c6 {[%emt 0:00:20]} 31. Rbb1 {[%emt 0:03:20]} Qc7 {[%emt 0:00:31]} 32. Nd3 {[%emt 0:00:25]} Rc2 {[%emt 0:00:30]} 33. Qe1 {[%emt 0:04:33]} h6 {[%emt 0:03:28]} 34. Rd2 {[%emt 0:02:07]} R2c3 {[%emt 0:01:00]} 35. Rdd1 {[%emt 0:00:29]} Qb7 {[%emt 0:01:15]} 36. h3 {[%emt 0:01:41]} Qa6 {[%emt 0:00:06]} 37. Qd2 {[%emt 0:02:53]} Rc2 {[%emt 0:00:26]} 38. Qe1 {[%emt 0:01:38]} Bd8 {[%emt 0:03:44]} 39. Rbc1 {[%emt 0:18:40]} Rxc1 {[%emt 0:00:32]} 40. Rxc1 {[%emt 0:00:00]} Rxc1 {[%emt 0:00:24]} 41. Nxc1 {[%emt 0:00:00]} Qc6 {[%emt 0:00:35]} 42. Qd1 {[%emt 0:00:00]} Bb6 {[%emt 0:00:25]} 43. Ne2 {[%emt 0:00:00]} Qc7 {[%emt 0:01:03]} 44. Qd3 {[%emt 0:00:00]} Qd7 {[%emt 0:01:46]} 45. Qa6 {[%emt 0:00:00]} Qc7 {[%emt 0:00:33]} 46. Qd3 {[%emt 0:00:00]} Qd7 {[%emt 0:00:09]} 47. Qa6 {[%emt 0:04:00]} Qc7 {[%emt 0:00:48]} 48. Qa8+ {[%emt 0:00:30]} Kh7 {[%emt 0:13:30]} 1/2-1/2

[Event "FRA-ch Youth U12W 2019"]
[Site "Hyeres"]
[Date "2019.04.16"]
[Round "4.3"]
[White "Gaillard, Marie"]
[Black "Schebacher, Solene"]
[Result "0-1"]
[ECO "E00"]
[WhiteElo "1418"]
[BlackElo "1555"]
[Annotator "NA"]
[PlyCount "128"]
[EventDate "2019.04.14"]
[EventType "swiss"]
[EventCountry "FRA"]
[SourceTitle "playchess.com"]
[Source "ChessBase"]
[SourceQuality "1"]
[TimeControl "5400+30"]

1. d4 {[%emt 0:00:00]} Nf6 {[%emt 0:00:00]} 2. c4 {[%emt 0:00:00]} e6 {[%emt 0:00:47]} 3. a3 {[%emt 0:02:12]} Be7 {[%emt 0:07:02]} 4. Nc3 {[%emt 0:03:42]} d5 {[%emt 0:03:51]} 5. c5 {[%emt 0:04:00]} a5 {[%emt 0:09:17]} 6. Nf3 {[%emt 0:08:50]} Bd7 {[%emt 0:06:07]} 7. e3 {[%emt 0:05:35]} O-O {[%emt 0:03:49]} 8. Bd3 {[%emt 0:04:52]} Bc6 {[%emt 0:04:54]} 9. Ne5 {[%emt 0:04:38]} h6 {[%emt 0:04:01]} 10. O-O {[%emt 0:04:25]} Nfd7 {[%emt 0:03:08]} 11. f4 {[%emt 0:05:09]} Nxe5 {[%emt 0:04:21]} 12. fxe5 {[%emt 0:00:23]} f6 {[%emt 0:02:48]} 13. Qh5 {[%emt 0:12:08]} f5 {[%emt 0:02:36]} 14. Qg6 {[%emt 0:03:42]} Bd7 {[%emt 0:06:27]} 15. Nb5 {[%emt 0:05:19]} Bg5 {[%emt 0:14:57]} 16. Rf3 {[%emt 0:13:30]} Qc8 {[%emt 0:04:09]} 17. Qh5 {[%emt 0:02:34]} Bxb5 {[%emt 0:02:22]} 18. Bxb5 {[%emt 0:00:21]} Qd8 {[%emt 0:00:45]} 19. Qg6 {[%emt 0:00:54]} Qe7 {[%emt 0:02:09]} 20. Bd2 {[%emt 0:02:10]} Qf7 {[%emt 0:02:11]} 21. Qxf7+ {[%emt 0:01:25]} Rxf7 {[%emt 0:00:48]} 22. Raf1 {[%emt 0:15:11]} Nc6 {[%emt 0:02:50]} 23. g4 {[%emt 0:00:00]} Nxd4 {[%emt 0:01:48]} 24. exd4 {[%emt 0:00:00]} Bxd2 {[%emt 0:00:09]} 25. gxf5 {[%emt 0:00:00]} Raf8 {[%emt 0:01:21]} 26. Bd3 {[%emt 0:00:00]} Kh8 {[%emt 0:05:14]} 27. Kg2 {[%emt 0:00:00]} exf5 {[%emt 0:01:29]} 28. Rxf5 {[%emt 0:00:00]} Kg8 {[%emt 0:01:15]} 29. Rxf7 {[%emt 0:00:00]} Rxf7 {[%emt 0:00:11]} 30. Rxf7 {[%emt 0:00:00]} Kxf7 {[%emt 0:00:08]} 31. Kf3 {[%emt 0:00:00]} a4 {[%emt 0:01:06]} 32. Bb5 {[%emt 0:00:00]} Bc1 {[%emt 0:00:09]} 33. Bxa4 {[%emt 0:00:03]} Bxb2 {[%emt 0:00:16]} 34. Ke3 {[%emt 0:01:23]} Bxa3 {[%emt 0:00:19]} 35. Bb3 {[%emt 0:00:16]} Ke6 {[%emt 0:00:31]} 36. Bc2 {[%emt 0:00:47]} Kf7 {[%emt 0:02:53]} 37. Bf5 {[%emt 0:00:26]} b6 {[%emt 0:00:37]} 38. Kd3 {[%emt 0:01:56]} bxc5 {[%emt 0:00:41]} 39. dxc5 {[%emt 0:00:13]} Bxc5 {[%emt 0:00:25]} 40. e6+ {[%emt 0:00:30]} Kf6 {[%emt 0:00:58]} 41. Bg4 {[%emt 0:00:21]} g6 {[%emt 0:00:19]} 42. h4 {[%emt 0:00:40]} h5 {[%emt 0:00:37]} 43. Bh3 {[%emt 0:00:15]} Ke5 {[%emt 0:00:25]} 44. Kc3 {[%emt 0:00:56]} Be7 {[%emt 0:00:34]} 45. Kd3 {[%emt 0:00:16]} Bxh4 {[%emt 0:00:10]} 46. Ke3 {[%emt 0:00:24]} Be7 {[%emt 0:00:13]} 47. Kd3 {[%emt 0:00:13]} g5 {[%emt 0:00:26]} 48. Bg2 {[%emt 0:00:12]} Kxe6 {[%emt 0:00:12]} 49. Kd4 {[%emt 0:00:08]} c5+ {[%emt 0:00:08]} 50. Kd3 {[%emt 0:00:13]} Kd6 {[%emt 0:00:40]} 51. Bf3 {[%emt 0:00:14]} g4 {[%emt 0:00:13]} 52. Bg2 {[%emt 0:00:16]} c4+ {[%emt 0:00:14]} 53. Kd4 {[%emt 0:00:16]} Bf6+ {[%emt 0:00:16]} 54. Ke3 {[%emt 0:00:15]} d4+ {[%emt 0:00:07]} 55. Kf2 {[%emt 0:00:16]} Ke5 {[%emt 0:00:20]} 56. Be4 {[%emt 0:00:16]} Kxe4 {[%emt 0:00:12]} 57. Kg1 {[%emt 0:00:07]} c3 {[%emt 0:00:08]} 58. Kh2 {[%emt 0:00:11]} c2 {[%emt 0:00:09]} 59. Kg2 {[%emt 0:00:05]} c1=Q {[%emt 0:00:30]} 60. Kf2 {[%emt 0:00:11]} Qe3+ {[%emt 0:00:22]} 61. Kg2 {[%emt 0:00:11]} Be5 {[%emt 0:00:23]} 62. Kf1 {[%emt 0:00:17]} Qd2 {[%emt 0:00:10]} 63. Kg1 {[%emt 0:00:09]} Kf3 {[%emt 0:00:08]} 64. Kh1 {[%emt 0:00:06]} Qg2# {[%emt 0:00:08]} 0-1

[Event "FRA-ch Youth U12W 2019"]
[Site "Hyeres"]
[Date "2019.04.16"]
[Round "4.4"]
[White "Lazes, Alexia"]
[Black "Micheli, Elora"]
[Result "1/2-1/2"]
[ECO "B45"]
[WhiteElo "1491"]
[BlackElo "1359"]
[Annotator "NA"]
[PlyCount "81"]
[EventDate "2019.04.14"]
[EventType "swiss"]
[EventCountry "FRA"]
[SourceTitle "playchess.com"]
[Source "ChessBase"]
[SourceQuality "1"]
[TimeControl "5400+30"]

1. e4 {[%emt 0:00:00]} c5 {[%emt 0:00:00]} 2. Nf3 {[%emt 0:00:00]} e6 {[%emt 0:01:06]} 3. d4 {[%emt 0:00:21]} cxd4 {[%emt 0:01:31]} 4. Nxd4 {[%emt 0:01:23]} Nf6 {[%emt 0:01:18]} 5. Nc3 {[%emt 0:02:27]} Nc6 {[%emt 0:01:41]} 6. Be3 {[%emt 0:03:29]} Bb4 {[%emt 0:02:13]} 7. f3 {[%emt 0:11:05]} d5 {[%emt 0:05:01]} 8. Bg5 {[%emt 0:10:52]} h6 {[%emt 0:03:58]} 9. Bxf6 {[%emt 0:06:49]} Qxf6 {[%emt 0:00:34]} 10. a3 {[%emt 0:01:47]} Qxd4 {[%emt 0:10:53]} 11. axb4 {[%emt 0:01:37]} Qxb4 {[%emt 0:05:56]} 12. Qd2 {[%emt 0:10:21]} d4 {[%emt 0:02:05]} 13. Nb5 {[%emt 0:05:37]} Qxb2 {[%emt 0:08:08]} 14. Rd1 {[%emt 0:03:06]} O-O {[%emt 0:02:44]} 15. Nxd4 {[%emt 0:11:44]} Nxd4 {[%emt 0:03:24]} 16. Qxd4 {[%emt 0:00:29]} Qxc2 {[%emt 0:01:14]} 17. Rd2 {[%emt 0:04:30]} Qc6 {[%emt 0:04:52]} 18. Be2 {[%emt 0:03:19]} b6 {[%emt 0:02:40]} 19. O-O {[%emt 0:02:28]} Bb7 {[%emt 0:01:13]} 20. Rfd1 {[%emt 0:01:00]} b5 {[%emt 0:03:03]} 21. Qb4 {[%emt 0:03:46]} a6 {[%emt 0:01:20]} 22. Qd6 {[%emt 0:01:22]} Qxd6 {[%emt 0:00:41]} 23. Rxd6 {[%emt 0:00:17]} Rfc8 {[%emt 0:06:39]} 24. Rb6 {[%emt 0:01:45]} Rc7 {[%emt 0:00:18]} 25. Ra1 {[%emt 0:00:52]} Rd8 {[%emt 0:01:53]} 26. Kf2 {[%emt 0:01:51]} Kf8 {[%emt 0:00:47]} 27. e5 {[%emt 0:00:58]} g5 {[%emt 0:00:24]} 28. g3 {[%emt 0:00:48]} Kg7 {[%emt 0:00:46]} 29. f4 {[%emt 0:00:36]} Rd4 {[%emt 0:00:29]} 30. Bf3 {[%emt 0:01:20]} Bxf3 {[%emt 0:00:56]} 31. Kxf3 {[%emt 0:00:08]} Rc3+ {[%emt 0:00:42]} 32. Ke2 {[%emt 0:01:44]} gxf4 {[%emt 0:00:45]} 33. gxf4 {[%emt 0:00:46]} Rxf4 {[%emt 0:00:17]} 34. Rg1+ {[%emt 0:01:45]} Kf8 {[%emt 0:00:54]} 35. Rb8+ {[%emt 0:00:42]} Ke7 {[%emt 0:00:07]} 36. Rb7+ {[%emt 0:01:08]} Kf8 {[%emt 0:01:10]} 37. Rb8+ {[%emt 0:00:21]} Ke7 {[%emt 0:00:22]} 38. Rb7+ {[%emt 0:00:12]} Kf8 {[%emt 0:00:14]} 39. Rb8+ {[%emt 0:00:05]} Ke7 {[%emt 0:00:07]} 40. Rb7+ {[%emt 0:00:11]} Kf8 {[%emt 0:00:18]} 41. Rb8+ {[%emt 0:00:09] Ke8 [%clk 0:00:00]} 1/2-1/2